bitfinex-derivatives/quotes_SOLF0:USTF0_20260305
["timestamp","ask_amount","ask_price","bid_price","bid_amount"]
[1772745628426,3.07968941,89.765,89.725,3.96879037]
[1772745629531,10.024,89.766,89.681,20.068]
[1772745629532,10.024,89.766,89.727,3.95765559]
[1772745630228,10.023,89.773,89.727,3.95765559]
[1772745631128,10.023,89.773,89.73,3.61141141]
[1772745631829,10.023,89.773,89.732,10.028]
[1772745632028,3.08264258,89.776,89.733,3.61141141]
[1772745632328,0.00015164,89.777,89.753,10.025]
[1772745633129,0.00015164,89.777,89.759,10.025]
[1772745633621,0.00015164,89.777,89.772,3.61141141]
[1772745633826,11.15,89.813,89.772,3.61141141]
[1772745634728,3.02067872,89.81,89.742,3.61141141]
[1772745635228,3.02067872,89.801,89.755,10.025]
[1772745635632,3.02067872,89.801,89.756,3.61141141]
[1772745639025,10.02,89.805,89.76,3.61141141]
[1772745639826,3.29817997,89.804,89.76,3.61141141]
[1772745640328,3.29817997,89.804,89.764,3.61141141]
[1772745641533,3.29817997,89.804,89.761,3.61141141]
[1772745642424,3.32624305,89.801,89.761,3.61141141]
[1772745643927,3.32624305,89.799,89.761,3.61141141]
[1772745645534,10.021,89.798,89.761,3.61141141]
[1772745646928,3.39545311,89.795,89.747,3.61141141]
[1772745648434,10.021,89.794,89.75,3.61141141]
[1772745649234,3.39545311,89.795,89.753,3.61141141]
[1772745650433,3.39545311,89.795,89.762,10.024]
[1772745650736,3.39545311,89.795,89.753,3.61141141]
[1772745650935,3.39545311,89.795,89.742,3.61141141]
[1772745652437,3.39545311,89.795,89.755,3.61141141]
[1772745653737,13.41645311,89.795,89.755,3.61141141]
[1772745654236,26.30112446,89.83,89.735,3.61141141]
[1772745654237,3.4292636,89.775,89.735,3.61141141]
[1772745654437,3.4292636,89.775,89.721,3.61141141]
[1772745655039,3.4292636,89.757,89.707,3.61141141]
[1772745655736,3.4292636,89.755,89.709,3.61141141]
[1772745656442,3.42796465,89.753,89.709,3.61141141]
[1772745657337,3.42796465,89.753,89.71,10.03]
[1772745659540,3.42843153,89.75,89.709,3.61141141]
[1772745661642,13.44461088,89.748,89.709,3.61141141]
[1772745662542,3.33946532,89.747,89.709,3.61141141]
[1772745662739,3.33946532,89.747,89.692,10.032]
[1772745663043,3.33946532,89.747,89.693,3.86870497]
[1772745663635,3.33946532,89.727,89.683,10.033]
[1772745663837,3.33946532,89.727,89.681,3.86870497]
[1772745664143,3.36198988,89.725,89.681,3.86870497]
[1772745664643,13.39098988,89.72,89.681,3.86870497]
[1772745664842,3.36198988,89.719,89.681,3.86870497]
[1772745666445,10.03,89.717,89.681,3.86870497]
[1772745666742,26.30112446,89.75,89.666,10.035]
[1772745666743,3.39420916,89.716,89.667,3.86870497]
[1772745669547,10.031,89.706,89.667,3.86870497]
[1772745671638,3.4031081,89.705,89.667,3.86870497]
[1772745671848,3.4031081,89.699,89.655,3.86870497]
[1772745673447,10.032,89.698,89.655,3.86870497]
[1772745677454,39.49566325,89.74,89.65,10.037]
[1772745677455,3.46080191,89.695,89.65,10.037]
[1772745677854,3.46080191,89.695,89.65,13.90570497]
[1772745678047,3.46080191,89.695,89.651,3.86870497]
[1772745678452,10.033,89.69,89.651,3.86870497]
[1772745679045,3.46080191,89.695,89.655,3.86870497]
[1772745679245,10.031,89.701,89.655,3.86870497]
[1772745679550,13.51005084,89.701,89.655,3.86870497]
[1772745679948,3.47905084,89.7,89.655,3.86870497]
[1772745680450,13.51952674,89.698,89.655,3.86870497]
[1772745684761,13.51952674,89.698,89.656,10.036]
[1772745685058,13.51952674,89.698,89.656,13.90470497]
[1772745685459,13.51952674,89.698,89.657,3.86870497]
[1772745686960,3.48752674,89.698,89.66,10.036]
[1772745687361,10.031,89.705,89.61,39.49566325]
[1772745687362,3.47156722,89.71,89.661,3.86870497]
[1772745687563,3.47156722,89.725,89.68,3.86870497]
[1772745689261,3.47156722,89.725,89.641,3.7536687]
[1772745689466,3.46404751,89.705,89.641,3.7536687]
[1772745690460,10.031,89.701,89.654,3.76250295]
[1772745691063,13.45346229,89.701,89.654,3.76250295]
[1772745691265,3.42246229,89.739,89.663,3.76250295]
[1772745692463,10.029,89.723,89.679,3.76250295]
[1772745695770,3.46076267,89.727,89.684,3.76250295]
[1772745696372,10.029,89.726,89.684,3.76250295]
[1772745698872,3.48789232,89.725,89.684,3.76250295]
[1772745702471,3.49941231,89.72,89.684,3.76250295]
[1772745703877,3.48789232,89.725,89.686,3.76250295]
[1772745706476,3.49829655,89.722,89.686,3.76250295]
[1772745706877,3.49941231,89.72,89.686,3.76250295]
[1772745707179,3.49829655,89.709,89.67,3.76250295]
[1772745707378,3.49941231,89.71,89.671,3.76250295]
[1772745708478,3.49941231,89.71,89.673,10.034]
[1772745708671,3.49941231,89.71,89.673,13.79650295]
[1772745710084,10.031,89.708,89.673,3.76250295]
[1772745711079,3.49941231,89.71,89.673,3.76250295]
[1772745711281,3.52589808,89.714,89.673,3.76250295]
[1772745711482,3.52589808,89.709,89.673,3.76250295]
[1772745711679,3.49941231,89.68,89.635,13.80503889]
[1772745711881,3.49941231,89.68,89.583,34.4553447]
[1772745711882,3.49941231,89.66,89.624,24.29536122]
[1772745712086,3.49941231,89.67,89.624,24.29536122]
[1772745712379,3.49941231,89.68,89.624,24.29536122]
[1772745712782,3.49941231,89.68,89.631,24.29344713]
[1772745715488,3.49941231,89.67,89.631,24.29344713]
[1772745715889,3.49941231,89.68,89.631,24.29344713]
[1772745718392,10.032,89.7,89.641,24.16848248]
[1772745718686,3.49941231,89.69,89.641,24.16848248]
[1772745719984,10.033,89.689,89.641,24.16848248]
[1772745720189,3.49941231,89.68,89.641,24.16848248]
[1772745726296,10.033,89.683,89.641,24.16848248]
[1772745726297,10.033,89.683,89.642,24.1344846]
[1772745726794,3.49941231,89.68,89.642,24.1344846]
[1772745728796,3.49941231,89.66,89.621,24.13342461]
[1772745729496,3.49941231,89.66,89.531,177.0]
[1772745729497,3.49941231,89.65,89.601,24.13342461]
[1772745730396,10.038,89.638,89.601,24.13342461]
[1772745731297,3.49941231,89.64,89.601,24.13342461]
[1772745732598,3.50608548,89.64,89.601,24.13342461]
[1772745735997,10.039,89.637,89.601,24.13342461]
[1772745736192,3.50608548,89.64,89.601,24.13342461]
[1772745737405,10.038,89.638,89.601,24.13342461]
[1772745738102,8.58523123,89.686,89.601,24.13342461]
[1772745738305,3.50608548,89.65,89.601,24.13342461]
[1772745739397,3.50608548,89.65,89.494,156.41]
[1772745739600,20.071,89.667,89.581,24.14639224]
[1772745739902,10.039,89.629,89.582,24.14639224]
[1772745740110,3.50608548,89.64,89.582,24.14639224]
[1772745741499,10.039,89.637,89.591,24.1489195]
[1772745741695,3.50608548,89.63,89.591,24.1489195]
[1772745741898,3.50608548,89.64,89.591,24.1489195]
[1772745743508,3.50608548,89.64,89.58,3.50608548]
[1772745743509,10.039,89.637,89.593,24.17155741]
[1772745743904,3.50608548,89.64,89.596,24.17155741]
[1772745744114,10.038,89.645,89.596,24.17155741]
[1772745744310,10.038,89.645,89.601,24.15996665]
[1772745748609,3.50608548,89.64,89.601,24.15996665]
[1772745748909,10.037,89.652,89.603,24.15953725]
[1772745749215,3.50608548,89.65,89.603,24.15953725]
[1772745750415,10.037,89.648,89.603,24.15953725]
[1772745751309,10.037,89.648,89.603,20.85953725]
[1772745753716,8.55471135,89.683,89.6,3.50608548]
[1772745753717,10.036,89.657,89.608,22.5144335]
[1772745753914,3.50608548,89.66,89.608,22.5144335]
[1772745754617,10.037,89.651,89.608,22.5144335]
[1772745755118,3.50608548,89.66,89.608,22.5144335]
[1772745755309,8.55471135,89.687,89.608,22.5144335]
[1772745755310,3.50608548,89.65,89.608,22.5144335]
[1772745756518,10.037,89.647,89.608,22.5144335]
[1772745757116,3.50608548,89.65,89.608,22.5144335]
[1772745757315,3.50608548,89.65,89.597,22.50222781]
[1772745758416,10.039,89.635,89.597,22.50222781]
[1772745760717,8.55471135,89.669,89.597,22.50222781]
[1772745760718,3.50608548,89.63,89.597,22.50222781]
[1772745761317,10.039,89.631,89.597,22.50222781]
[1772745763821,3.50608548,89.63,89.597,22.50222781]
[1772745764618,10.039,89.631,89.597,22.50222781]
[1772745765928,3.50608548,89.63,89.597,22.50222781]
[1772745767231,10.039,89.629,89.597,22.50222781]
[1772745768924,3.50608548,89.62,89.586,22.46580896]
[1772745769130,3.50608548,89.61,89.561,22.46580896]
[1772745769732,10.041,89.614,89.566,22.46580896]
[1772745770031,10.041,89.614,89.571,22.46580896]
[1772745771429,10.041,89.614,89.572,22.45150326]
[1772745775840,3.50608548,89.61,89.572,22.45150326]
[1772745776230,10.042,89.609,89.572,22.45150326]
[1772745778641,3.50608548,89.6,89.572,22.45150326]
[1772745782036,10.042,89.608,89.572,22.45150326]
[1772745786644,3.50608548,89.61,89.572,22.45150326]
[1772745786849,3.50608548,89.59,89.561,22.5153753]
[1772745788450,10.044,89.588,89.561,22.5153753]
[1772745790545,3.50608548,89.58,89.561,22.5153753]
[1772745790852,3.50608548,89.57,89.511,22.48221581]
[1772745791050,3.50608548,89.56,89.511,22.48221581]
[1772745791351,3.50608548,89.56,89.513,22.48221581]
[1772745792552,3.51234442,89.56,89.515,22.47754501]
[1772745793350,10.047,89.559,89.515,22.47754501]
[1772745795152,3.51234442,89.56,89.517,22.47602953]
[1772745795550,3.51234442,89.56,89.519,22.47602953]
[1772745799357,3.51234442,89.56,89.48,20.113]
[1772745799358,3.51234442,89.57,89.521,22.49566051]
[1772745800358,3.51234442,89.57,89.53,10.05]
[1772745800556,3.51234442,89.57,89.531,22.49735523]
[1772745802655,3.51234442,89.59,89.533,22.49709515]
[1772745802859,3.51234442,89.59,89.541,22.49709515]
[1772745803960,3.51234442,89.59,89.544,10.049]
[1772745804158,3.51234442,89.6,89.551,22.49709515]
[1772745805360,10.043,89.599,89.552,22.50244585]
[1772745805963,10.043,89.599,89.554,22.50244585]
[1772745806267,10.043,89.599,89.561,22.50244585]
[1772745807364,10.042,89.606,89.561,22.50244585]
[1772745811263,10.042,89.606,89.56,3.51234442]
[1772745811264,10.042,89.606,89.563,22.46380715]
[1772745812971,3.51234442,89.61,89.565,22.4589399]
[1772745813166,10.041,89.613,89.565,22.4589399]
[1772745813374,3.51234442,89.62,89.571,22.4589399]
[1772745813865,10.04,89.622,89.581,22.4589399]
[1772745817669,10.041,89.615,89.569,22.41399527]
[1772745817871,10.041,89.615,89.57,25.92633969]
[1772745818476,3.51234442,89.64,89.591,22.40710636]
[1772745819270,10.039,89.637,89.601,22.40710636]
[1772745819573,3.51234442,89.65,89.601,22.40710636]
[1772745819767,3.51234442,89.66,89.601,22.40710636]
[1772745820274,10.038,89.645,89.601,22.40710636]
[1772745820663,3.51234442,89.66,89.611,22.48889639]
[1772745821873,8.41287722,89.682,89.611,22.48889639]
[1772745822071,3.51234442,89.66,89.611,22.48889639]
[1772745823574,10.037,89.654,89.611,22.48889639]
[1772745823971,10.037,89.649,89.611,22.48889639]
[1772745824869,10.038,89.642,89.611,22.48889639]
[1772745828578,10.038,89.642,89.599,22.47903553]
[1772745828773,10.039,89.634,89.599,22.47903553]
[1772745834279,10.038,89.645,89.601,22.47945382]
[1772745836382,10.038,89.645,89.605,22.48012381]
[1772745837180,3.51234442,89.65,89.605,22.48012381]
[1772745838578,10.037,89.649,89.605,22.48012381]
[1772745839677,10.037,89.649,89.609,22.51557503]
[1772745839884,10.037,89.649,89.611,22.51557503]
[1772745840986,10.036,89.657,89.611,22.51557503]
[1772745842978,10.036,89.657,89.621,22.5499315]
[1772745843489,3.51234442,89.65,89.621,22.5499315]
[1772745846891,3.51234442,89.64,89.601,22.49876373]
[1772745853692,10.038,89.638,89.601,22.49876373]
[1772745868510,10.039,89.632,89.601,22.49876373]
[1772745869012,10.039,89.632,89.559,20.095]
[1772745869013,10.041,89.618,89.602,4.38086113]
[1772745869213,10.041,89.618,89.57,3.50619505]
[1772745870505,10.041,89.618,89.578,10.045]
[1772745870711,10.041,89.618,89.58,3.50619505]
[1772745871110,10.041,89.618,89.581,11.26324864]
[1772745875222,8.37363464,89.64,89.6,3.50619505]
[1772745875419,3.50619505,89.65,89.601,11.23890807]
[1772745875919,10.038,89.646,89.611,11.23890807]
[1772745876521,8.37363464,89.664,89.62,3.50619505]
[1772745876722,15.79137176,89.695,89.621,11.24001557]
[1772745876723,3.50619505,89.68,89.621,11.24001557]
[1772745876922,3.50619505,89.68,89.631,11.24001557]
[1772745878314,10.034,89.679,89.631,11.24001557]
[1772745879114,10.035,89.672,89.631,11.24001557]
[1772745884127,3.50619505,89.68,89.631,11.24001557]
[1772745885427,10.034,89.679,89.631,11.24001557]
[1772745885824,3.50619505,89.67,89.631,11.24001557]
[1772745887429,10.034,89.679,89.631,11.24001557]
[1772745888927,3.50619505,89.67,89.631,11.24001557]
[1772745891634,3.50619505,89.66,89.631,11.24001557]
[1772745893834,3.50619505,89.65,89.62,11.2543511]
[1772745895336,13.54219505,89.66,89.62,11.2543511]
[1772745896134,3.50619505,89.66,89.62,11.2543511]
[1772745896439,3.50619505,89.67,89.62,11.2543511]
[1772745897335,8.34413437,89.703,89.621,4.4697998]
[1772745897634,3.50619505,89.7,89.651,4.4697998]
[1772745899137,10.032,89.697,89.651,4.4697998]
[1772745900432,10.031,89.705,89.653,4.5398517]
[1772745901333,10.032,89.699,89.653,4.5398517]
[1772745902038,3.50619505,89.7,89.658,4.5398517]
[1772745902539,10.032,89.698,89.658,4.5398517]
[1772745906839,3.50619505,89.7,89.658,4.5398517]
[1772745907338,10.031,89.706,89.658,4.5398517]
[1772745907640,3.50619505,89.71,89.667,4.53041094]
[1772745907934,3.50619505,89.7,89.667,4.53041094]
[1772745910638,3.50619505,89.7,89.614,20.61724753]
[1772745910639,10.025,89.758,89.703,10.031]
[1772745910838,3.50619505,89.75,89.691,4.53498626]
[1772745911143,3.50619505,89.74,89.691,4.53498626]
[1772745912345,3.50619505,89.75,89.701,4.58506936]
[1772745913441,3.50619505,89.74,89.701,4.58506936]
[1772745915144,10.027,89.739,89.701,4.58506936]
[1772745915444,3.50619505,89.74,89.701,4.58506936]
[1772745916440,10.028,89.731,89.701,4.58506936]
[1772745917343,3.49856481,89.72,89.69,4.57137087]
[1772745917543,3.49856481,89.72,89.671,4.57137087]
[1772745917947,10.03,89.717,89.674,4.57137087]
[1772745918844,3.49856481,89.71,89.674,4.57137087]
[1772745919246,10.03,89.717,89.674,4.57137087]
[1772745919555,10.03,89.717,89.676,4.5649148]
[1772745921741,3.49856481,89.72,89.676,4.5649148]
[1772745921947,10.03,89.71,89.676,4.5649148]
[1772745926048,10.031,89.704,89.663,4.54420904]
[1772745927344,10.031,89.704,89.666,4.58834394]
[1772745930155,3.49856481,89.71,89.668,4.57537139]
[1772745931553,10.03,89.711,89.67,4.57200483]
[1772745932456,10.03,89.711,89.672,4.58687738]
[1772745934550,8.30553078,89.752,89.675,4.46126076]
[1772745934551,10.029,89.718,89.675,4.46126076]
[1772745935458,10.029,89.718,89.677,4.46126076]
[1772745936154,10.029,89.718,89.679,4.46126076]
[1772745936556,3.49856481,89.74,89.681,4.45919102]
[1772745936862,3.49856481,89.73,89.681,4.45919102]
[1772745937460,10.029,89.719,89.681,4.45919102]
[1772745937657,3.49856481,89.72,89.681,4.45919102]
[1772745938053,3.49856481,89.72,89.626,20.52608334]
[1772745938054,10.031,89.705,89.661,4.45919102]
[1772745938258,3.49856481,89.7,89.661,4.45919102]
[1772745939366,10.031,89.705,89.661,4.45919102]
[1772745941559,10.032,89.699,89.661,4.45919102]
[1772745950878,10.032,89.699,89.662,10.036]
[1772745952677,10.032,89.699,89.663,4.47586994]
[1772745953572,10.032,89.693,89.654,10.037]
[1772745953879,3.49856481,89.69,89.64,7.97443475]
[1772745954077,3.49856481,89.69,89.64,4.47586994]
[1772745954280,10.034,89.678,89.643,4.48404228]
[1772745964686,10.035,89.669,89.621,4.46335311]
[1772745964882,3.49856481,89.66,89.621,4.46335311]
[1772745966390,3.49856481,89.67,89.623,4.46699567]
[1772745966788,3.49856481,89.67,89.596,20.52608334]
[1772745966789,3.49856481,89.66,89.6,3.49856481]
[1772745966988,3.49856481,89.66,89.601,4.46699567]
[1772745967588,3.49856481,89.65,89.612,14.50799567]
[1772745972386,10.037,89.649,89.612,4.46699567]
[1772745972584,8.28621363,89.689,89.6,3.49856481]
[1772745972585,3.49856481,89.64,89.6,4.48556141]
[1772745973191,3.49856481,89.64,89.602,14.52756141]
[1772745973396,3.49856481,89.64,89.603,4.48556141]
[1772745975895,10.037,89.648,89.603,4.48556141]
[1772745976396,10.037,89.648,89.606,4.47044294]
[1772745976788,3.5055002,89.64,89.606,4.47044294]
[1772745977893,10.039,89.636,89.598,10.043]
[1772745978096,10.039,89.636,89.599,4.47044294]
[1772745979394,10.039,89.636,89.59,3.5055002]
[1772745979395,3.5055002,89.64,89.601,4.46298607]
[1772745979596,10.038,89.643,89.601,4.46298607]
[1772745987805,13.5425002,89.65,89.606,4.43867431]
[1772745988106,10.36477943,89.728,89.641,4.43867431]
[1772745988306,3.5055002,89.71,89.665,10.035]
[1772745988514,10.031,89.706,89.662,4.41822936]
[1772745993713,3.5055002,89.7,89.662,4.41822936]
[1772745995315,10.032,89.699,89.662,4.41822936]
[1772746000020,10.032,89.693,89.662,4.41822936]
[1772746004112,10.032,89.693,89.647,10.037]
[1772746004317,3.5055002,89.69,89.644,4.43101495]
[1772746004819,20.06,89.715,89.644,4.43101495]
[1772746005021,3.5055002,89.68,89.644,4.43101495]
[1772746006517,13.5395002,89.68,89.644,4.43101495]
[1772746007017,10.034,89.674,89.644,4.43101495]
[1772746007215,10.36477943,89.735,89.601,4.42256865]
[1772746007216,3.5055002,89.65,89.601,4.42256865]
[1772746007418,3.5055002,89.64,89.601,4.42256865]
[1772746008523,3.5055002,89.63,89.586,4.33475713]
[1772746009322,3.5055002,89.62,89.586,4.33475713]
[1772746012821,3.5055002,89.63,89.586,4.33475713]
[1772746014429,3.5055002,89.63,89.587,4.22810589]
[1772746014831,3.5055002,89.64,89.59,3.5055002]
[1772746015130,10.038,89.639,89.594,4.22810589]
[1772746019836,10.038,89.639,89.593,10.043]
[1772746019837,3.5055002,89.64,89.596,4.24253053]
[1772746020033,3.5055002,89.63,89.596,4.24253053]
[1772746020234,156.063,89.694,89.581,4.24253053]
[1772746020235,3.5055002,89.62,89.581,4.24253053]
[1772746021636,3.5055002,89.62,89.57,3.5055002]
[1772746021637,13.5445002,89.63,89.583,4.23978298]
[1772746022227,10.04,89.623,89.583,4.23978298]
[1772746022436,3.5055002,89.62,89.583,4.23978298]
[1772746026142,10.04,89.621,89.583,4.23978298]
[1772746026536,3.5055002,89.62,89.583,4.23978298]
[1772746029441,10.04,89.621,89.583,4.23978298]
[1772746036447,10.039,89.637,89.591,4.2052143]
[1772746036648,3.5055002,89.63,89.581,4.2052143]
[1772746037348,3.5055002,89.62,89.581,4.2052143]
[1772746037742,3.5055002,89.61,89.56,3.5055002]
[1772746037943,10.044,89.591,89.546,4.2052143]
[1772746038545,10.044,89.588,89.546,4.2052143]
[1772746039849,3.50982183,89.59,89.546,4.2052143]
[1772746042447,10.044,89.587,89.546,4.2052143]
[1772746042949,3.50982183,89.59,89.547,10.048]
[1772746043143,3.50982183,89.61,89.551,4.18919399]
[1772746044148,3.50982183,89.6,89.557,4.18919399]
[1772746045456,13.55282183,89.6,89.557,4.18919399]
[1772746047654,3.50982183,89.6,89.557,4.18919399]
[1772746047955,3.50982183,89.6,89.55,3.50982183]
[1772746047956,3.50982183,89.61,89.563,4.17254383]
[1772746049158,10.043,89.599,89.563,4.17254383]
[1772746050653,10.043,89.599,89.55,3.50982183]
[1772746050654,3.50982183,89.6,89.564,14.21826204]
[1772746050856,10.042,89.609,89.565,4.17126204]
[1772746052056,3.50982183,89.6,89.565,4.17126204]
[1772746053453,10.043,89.599,89.565,4.17126204]
[1772746058065,3.50982183,89.62,89.566,4.16968804]
[1772746058268,3.50982183,89.62,89.571,4.16968804]
[1772746058860,3.50982183,89.62,89.57,3.50982183]
[1772746058861,10.04,89.624,89.581,4.17119619]
[1772746059168,3.50982183,89.64,89.581,4.17119619]
[1772746059364,3.50982183,89.64,89.553,20.096]
[1772746059365,3.50982183,89.64,89.591,4.17119619]
[1772746059966,3.50982183,89.63,89.591,4.17119619]
[1772746061565,10.04,89.627,89.591,4.17119619]
[1772746062665,3.50982183,89.63,89.592,4.11005842]
[1772746064765,3.50982183,89.64,89.592,4.11005842]
[1772746065568,3.50982183,89.65,89.592,4.11005842]
[1772746065965,3.50982183,89.65,89.601,4.10210081]
[1772746066365,10.038,89.642,89.601,4.10210081]
[1772746074773,10.038,89.642,89.603,4.07713043]
[1772746079779,10.038,89.642,89.605,3.97577118]
[1772746081879,0.02817199,89.658,89.611,3.97246159]
[1772746082083,0.02817199,89.658,89.621,3.97246159]
[1772746083081,10.036,89.663,89.621,3.97246159]
[1772746083283,0.02901308,89.669,89.621,3.97246159]
[1772746083485,10.035,89.667,89.624,3.97204104]
[1772746084382,10.035,89.667,89.62,3.50982183]
[1772746084383,10.035,89.667,89.626,4.01435254]
[1772746084585,10.035,89.667,89.631,4.01435254]
[1772746087888,10.034,89.678,89.631,14.05335254]
[1772746088090,10.034,89.678,89.632,4.01045801]
[1772746094392,10.033,89.685,89.635,4.00576993]
[1772746094593,10.033,89.685,89.641,4.00576993]
[1772746094795,3.50982183,89.7,89.651,4.00576993]
[1772746095597,3.50982183,89.7,89.65,3.50982183]
[1772746095598,3.50982183,89.71,89.661,4.00576993]
[1772746096393,3.50982183,89.71,89.662,10.036]
[1772746096394,10.031,89.707,89.662,10.036]
[1772746096696,10.031,89.707,89.663,4.05329319]
[1772746098791,10.031,89.707,89.668,4.05455952]
[1772746105703,3.50066056,89.71,89.67,4.1251824]
[1772746107507,3.50066056,89.71,89.672,10.035]
[1772746107703,3.50066056,89.71,89.673,4.12184277]
[1772746109006,20.048,89.769,89.681,4.1359662]
[1772746109198,3.50066056,89.72,89.681,4.1359662]
[1772746109398,3.50066056,89.73,89.681,4.1359662]
[1772746109706,3.50066056,89.73,89.701,10.031]
[1772746109904,3.50066056,89.74,89.701,10.031]
[1772746110305,3.50066056,89.74,89.693,4.13591208]
[1772746110505,13.52766056,89.74,89.693,4.13591208]
[1772746112309,10.028,89.734,89.693,4.13591208]
[1772746112508,3.50066056,89.72,89.682,4.14913552]
[1772746113008,10.029,89.726,89.682,4.14913552]
[1772746113910,13.52966056,89.72,89.683,4.14913552]
[1772746114109,11.16,89.767,89.683,4.14913552]
[1772746114310,3.50066056,89.73,89.683,4.14913552]
[1772746115503,10.028,89.727,89.685,4.15393944]
[1772746118408,13.52966056,89.72,89.671,4.15041695]
[1772746118616,3.50066056,89.73,89.671,4.15041695]
[1772746119418,3.50066056,89.73,89.691,10.032]
[1772746120618,3.50066056,89.73,89.692,4.17197332]
[1772746122715,3.50066056,89.73,89.694,4.17224935]
[1772746127421,3.50066056,89.75,89.697,4.18782155]
[1772746128021,3.50066056,89.75,89.7,3.50066056]
[1772746128222,3.50066056,89.75,89.701,4.18782155]
[1772746128520,3.50066056,89.75,89.707,4.18986747]
[1772746128716,3.50066056,89.76,89.711,4.18986747]
[1772746129912,8.24807563,89.802,89.722,4.18986747]
[1772746130118,3.50066056,89.78,89.722,4.18986747]
[1772746130719,8.24807563,89.802,89.727,4.18319552]
[1772746130720,3.50066056,89.77,89.727,4.18319552]
[1772746132626,10.024,89.769,89.727,4.18319552]
[1772746133921,10.024,89.763,89.727,4.18319552]
[1772746134223,3.50066056,89.75,89.711,4.18158251]
[1772746134627,10.025,89.759,89.712,4.19678679]
[1772746135829,3.50066056,89.75,89.712,4.19678679]
[1772746137628,10.026,89.748,89.712,4.19678679]
[1772746138331,3.50066056,89.74,89.703,10.031]
[1772746138527,3.50066056,89.74,89.703,14.23717997]
[1772746138724,3.50066056,89.74,89.704,4.20617997]
[1772746138923,10.027,89.739,89.704,4.20617997]
[1772746139122,3.50066056,89.75,89.704,4.20617997]
[1772746139429,8.24139945,89.775,89.704,4.20617997]
[1772746139629,3.50066056,89.75,89.704,4.20617997]
[1772746140225,3.50066056,89.74,89.704,4.20617997]
[1772746140531,3.50066056,89.73,89.691,4.20377896]
[1772746141031,8.24139945,89.775,89.68,3.50066056]
[1772746141032,3.50066056,89.74,89.693,4.20377896]
[1772746142231,3.50066056,89.74,89.699,4.20377896]
[1772746143634,10.027,89.738,89.699,4.20377896]
[1772746149829,10.028,89.732,89.699,4.20377896]
[1772746150233,10.028,89.732,89.691,4.23596638]
[1772746151542,20.047,89.776,89.68,3.50066056]
[1772746151543,10.029,89.724,89.683,4.23417577]
[1772746151942,3.50066056,89.73,89.685,4.23417577]
[1772746152144,3.50066056,89.74,89.691,4.23417577]
[1772746153436,10.027,89.738,89.696,4.35050865]
[1772746154740,3.50066056,89.74,89.696,4.35050865]
[1772746154933,3.50066056,89.73,89.685,4.29675916]
[1772746155942,10.029,89.726,89.687,4.29675916]
[1772746156338,3.50066056,89.73,89.687,4.29675916]
[1772746156544,3.50066056,89.74,89.691,4.37198354]
[1772746157444,10.028,89.733,89.696,4.37198354]
[1772746158838,3.50066056,89.74,89.699,4.36484597]
[1772746159044,3.50066056,89.75,89.7,3.50066056]
[1772746159245,3.50066056,89.75,89.708,4.36484597]
[1772746160644,10.026,89.747,89.708,4.36484597]
[1772746161436,10.026,89.747,89.707,10.031]
[1772746161641,3.49776869,89.74,89.7,10.031]
[1772746161947,3.49776869,89.74,89.7,14.40494286]
[1772746162744,3.49776869,89.74,89.701,4.39388444]
[1772746162948,13.82317364,89.788,89.701,4.39388444]
[1772746162949,3.49776869,89.73,89.701,4.39388444]
[1772746163140,3.49776869,89.73,89.693,10.032]
[1772746163537,3.49776869,89.73,89.696,10.032]
[1772746163940,13.52476869,89.74,89.696,10.032]
[1772746164947,13.52476869,89.74,89.696,14.43145205]
[1772746165241,13.52476869,89.74,89.697,4.39945205]
[1772746165748,13.52476869,89.74,89.699,14.43145205]
[1772746166046,3.49776869,89.74,89.7,4.39945205]
[1772746167541,20.046,89.779,89.7,4.39945205]
[1772746167542,3.49776869,89.75,89.704,4.3990933]
[1772746167741,10.025,89.755,89.704,4.3990933]
[1772746168147,10.025,89.755,89.718,14.4280933]
[1772746168649,10.025,89.761,89.719,4.39951376]
[1772746169548,10.025,89.761,89.71,3.49776869]
[1772746169549,10.025,89.761,89.721,4.39950945]
[1772746169844,3.49776869,89.77,89.721,4.39950945]
[1772746170049,3.49776869,89.77,89.729,10.028]
[1772746170349,3.49776869,89.77,89.721,4.39950945]
[1772746170849,3.49776869,89.77,89.72,3.49776869]
[1772746170850,3.49776869,89.78,89.73,4.39769526]
[1772746171050,3.49776869,89.78,89.731,4.39769526]
[1772746172345,3.49776869,89.78,89.733,10.028]
[1772746172551,3.49776869,89.78,89.734,4.41282329]
[1772746173254,10.023,89.778,89.735,14.44082329]